fUSD/lending_fUSD_20250204
["ID","MTS","AMOUNT","RATE_DAILY","PERIOD"]
[351672353,1738705841368,-1812.77,0.00010271,2]
[351672354,1738705841377,-561.6,0.00010271,2]
[351672355,1738705841387,-297.11,0.00010271,2]
[351672356,1738705841397,-500.0,0.00010271,2]
[351672357,1738705841407,-274.5,0.00010271,2]
[351672358,1738705841417,-500.0,0.00010271,2]
[351672359,1738705841427,-500.0,0.00010271,2]
[351672360,1738705841436,-184.5,0.00010271,2]
[351672361,1738705841446,-500.0,0.00010271,2]
[351672362,1738705841455,-1149.49,0.00010271,2]
[351672363,1738705841465,-287.45,0.00010271,2]
[351672364,1738705841475,-538.77,0.00010271,2]
[351672365,1738705841486,-500.0,0.00010271,2]
[351672366,1738705841496,-500.0,0.00010271,2]
[351672367,1738705841505,-500.0,0.00010271,2]
[351672368,1738705841515,-165.24,0.00010271,2]
[351672369,1738705841525,-575.39,0.00010271,2]
[351672370,1738705841535,-500.0,0.00010271,2]
[351672371,1738705841547,-500.0,0.00010271,2]
[351672372,1738705841556,-220.31,0.00010271,2]
[351672373,1738705841566,-500.0,0.00010271,2]
[351672374,1738705841575,-500.0,0.00010271,2]
[351672375,1738705841585,-500.0,0.00010271,2]
[351672376,1738705841593,-515.05,0.00010271,2]
[351672377,1738705841602,-500.0,0.00010271,2]
[351672378,1738705841612,-500.0,0.00010271,2]
[351672379,1738705841622,-304.87232033,0.00010271,2]
[351672380,1738705841632,-500.0,0.00010271,2]
[351672381,1738705841642,-500.0,0.00010271,2]
[351672382,1738705841652,-500.0,0.00010271,2]
[351672383,1738705841661,-500.0,0.00010271,2]
[351672384,1738705841671,-500.0,0.00010271,2]
[351672385,1738705841681,-500.0,0.00010271,2]
[351672386,1738705841691,-534.21,0.00010271,2]
[351672387,1738705841701,-500.0,0.00010271,2]
[351672388,1738705841710,-500.0,0.00010271,2]
[351672389,1738705841720,-500.0,0.00010271,2]
[351672390,1738705841733,-500.0,0.00010271,2]
[351672391,1738705841743,-407.33,0.00010271,2]
[351672392,1738705841753,-367.1,0.00010271,2]
[351672393,1738705841762,-747.02,0.00010271,2]
[351672394,1738705841772,-500.0,0.00010271,2]
[351672395,1738705841782,-356.15,0.00010271,2]
[351672396,1738705841793,-234.7,0.00010271,2]
[351672397,1738705841805,-340.0,0.00010271,2]
[351672398,1738705841816,-612.76,0.00010271,2]
[351672399,1738705841828,-500.0,0.00010271,2]
[351672400,1738705841840,-549.11,0.00010271,2]
[351672401,1738705841851,-500.0,0.00010271,2]
[351672402,1738705841862,-500.0,0.00010271,2]
[351672403,1738705841874,-576.13,0.00010271,2]
[351672404,1738705841886,-500.0,0.00010271,2]
[351672405,1738705841898,-500.0,0.00010271,2]
[351672406,1738705841909,-500.0,0.00010271,2]
[351672407,1738705841921,-500.0,0.00010271,2]
[351672408,1738705841933,-356.46921484,0.00010271,2]
[351672409,1738705841945,-766.33,0.00010271,2]
[351672410,1738705841956,-500.0,0.00010271,2]
[351672411,1738705841967,-500.0,0.00010271,2]
[351672412,1738705841982,-605.88,0.00010271,2]
[351672413,1738705841996,-500.0,0.00010271,2]
[351672414,1738705842006,-579.92,0.00010271,2]
[351672415,1738705842017,-843.92,0.00010271,2]
[351672416,1738705842029,-272.89,0.00010271,2]
[351672417,1738705842039,-500.0,0.00010271,2]
[351672418,1738705842049,-500.0,0.00010271,2]
[351672419,1738705842059,-303.64,0.00010271,2]
[351672420,1738705842070,-500.0,0.00010271,2]
[351672421,1738705842081,-581.17,0.00010271,2]
[351672422,1738705842091,-186.59,0.00010271,2]
[351672423,1738705842101,-500.0,0.00010271,2]
[351672424,1738705842111,-500.0,0.00010271,2]
[351672425,1738705842121,-500.0,0.00010272,2]
[351672426,1738705842131,-570.11,0.00010272,2]
[351672427,1738705842141,-500.0,0.00010272,2]
[351672428,1738705842151,-500.0,0.00010272,2]
[351672429,1738705842161,-500.0,0.00010272,2]
[351672430,1738705842171,-500.0,0.00010272,2]
[351672431,1738705842182,-500.0,0.00010272,2]
[351672432,1738705842192,-575.79,0.00010272,2]
[351672433,1738705842203,-546.8,0.00010272,2]
[351672434,1738705842214,-500.0,0.00010272,2]
[351672435,1738705842224,-500.0,0.00010272,2]
[351672436,1738705842238,-500.0,0.00010272,2]
[351672437,1738705842248,-500.0,0.00010272,2]
[351672438,1738705842258,-500.0,0.00010272,2]
[351672439,1738705842268,-222.24,0.00010272,2]
[351672440,1738705842278,-500.0,0.00010272,2]
[351672441,1738705842288,-221.41,0.00010272,2]
[351672442,1738705842298,-500.0,0.00010272,2]
[351672443,1738705842308,-500.0,0.00010272,2]
[351672444,1738705842317,-380.96,0.00010272,2]
[351672445,1738705842327,-245.86,0.00010272,2]
[351672446,1738705842338,-174.28123366,0.00010272,2]
[351672447,1738705842360,-218.8447556,0.00010272,2]
[351672448,1738705842370,-71.9524217,0.00010272,2]
[351672449,1738705842382,-428.0475783,0.00010272,2]
[351672450,1738705842391,-554.76,0.00010272,2]
[351672451,1738705842401,-195.72,0.00010272,2]
[351672452,1738705842411,-630.36,0.00010272,2]
[351672453,1738705842421,-297.93,0.00010272,2]
[351672454,1738705842431,-500.0,0.00010272,2]
[351672455,1738705842440,-429.16,0.00010272,2]
[351672456,1738705842450,-500.0,0.00010272,2]
[351672457,1738705842461,-500.0,0.00010272,2]
[351672458,1738705842470,-500.0,0.00010272,2]
[351672459,1738705842534,-500.0,0.00010272,2]
[351672460,1738705842544,-500.0,0.00010272,2]
[351672461,1738705842554,-500.0,0.00010272,2]
[351672462,1738705842563,-500.0,0.00010272,2]
[351672463,1738705842574,-500.0,0.00010272,2]
[351672464,1738705842583,-322.76,0.00010272,2]
[351672465,1738705842592,-500.0,0.00010272,2]
[351672466,1738705842602,-500.0,0.00010272,2]
[351672467,1738705842612,-500.0,0.00010272,2]
[351672468,1738705842623,-500.0,0.00010272,2]
[351672469,1738705842632,-500.0,0.00010272,2]
[351672470,1738705842642,-500.0,0.00010272,2]
[351672471,1738705842652,-500.0,0.00010272,2]
[351672472,1738705842661,-500.0,0.00010272,2]
[351672473,1738705842671,-500.0,0.00010272,2]
[351672474,1738705842682,-168.56,0.00010272,2]
[351672475,1738705842692,-500.0,0.00010272,2]
[351672476,1738705842702,-500.0,0.00010272,2]
[351672477,1738705842712,-392.32,0.00010272,2]
[351672478,1738705842722,-500.0,0.00010272,2]
[351672479,1738705842735,-500.0,0.00010272,2]
[351672480,1738705842745,-500.0,0.00010272,2]
[351672481,1738705842755,-500.0,0.00010272,2]
[351672482,1738705842766,-500.0,0.00010272,2]
[351672483,1738705842775,-500.0,0.00010272,2]
[351672484,1738705842786,-500.0,0.00010272,2]
[351672485,1738705842795,-500.0,0.00010272,2]
[351672486,1738705842805,-764.38,0.00010272,2]
[351672487,1738705842815,-500.0,0.00010272,2]
[351672488,1738705842825,-500.0,0.00010272,2]
[351672489,1738705842835,-492.34,0.00010272,2]
[351672490,1738705842845,-500.0,0.00010272,2]
[351672491,1738705842855,-1574.6,0.00010272,2]
[351672492,1738705842865,-500.0,0.00010272,2]
[351672493,1738705842874,-500.0,0.00010272,2]
[351672494,1738705842884,-500.0,0.00010272,2]
[351672495,1738705842893,-500.0,0.00010272,2]
[351672496,1738705842903,-500.0,0.00010272,2]
[351672497,1738705842913,-171.72,0.00010272,2]
[351672498,1738705842923,-500.0,0.00010272,2]
[351672499,1738705842933,-980.4,0.00010272,2]
[351672500,1738705842943,-500.0,0.00010272,2]
[351672501,1738705842952,-500.0,0.00010272,2]
[351672502,1738705842962,-500.0,0.00010272,2]
[351672503,1738705842972,-500.0,0.00010272,2]
[351672504,1738705842985,-500.0,0.00010272,2]
[351672505,1738705842994,-500.0,0.00010272,2]
[351672507,1738705843004,-500.0,0.00010272,2]
[351672509,1738705843014,-500.0,0.00010272,2]
[351672511,1738705843024,-500.0,0.00010272,2]
[351672512,1738705843033,-470.96,0.00010272,2]
[351672513,1738705843043,-500.0,0.00010272,2]
[351672514,1738705843052,-500.0,0.00010272,2]
[351672515,1738705843063,-500.0,0.00010272,2]
[351672516,1738705843073,-500.0,0.00010272,2]
[351672517,1738705843084,-500.0,0.00010272,2]
[351672518,1738705843094,-784.09,0.00010272,2]
[351672519,1738705843103,-2180.15,0.00010272,2]
[351672520,1738705843112,-500.0,0.00010272,2]
[351672521,1738705843122,-500.0,0.00010272,2]
[351672522,1738705843131,-500.0,0.00010272,2]
[351672524,1738705843141,-500.0,0.00010272,2]
[351672526,1738705843151,-500.0,0.00010272,2]
[351672527,1738705843160,-500.0,0.00010272,2]
[351672528,1738705843170,-500.0,0.00010272,2]
[351672529,1738705843180,-349.88,0.00010272,2]
[351672530,1738705843190,-500.0,0.00010272,2]
[351672531,1738705843199,-500.0,0.00010272,2]
[351672532,1738705843209,-500.0,0.00010272,2]
[351672533,1738705843219,-500.0,0.00010272,2]
[351672534,1738705843228,-500.0,0.00010272,2]
[351672535,1738705843239,-322.6595517,0.00010272,2]
[351672536,1738705843253,-177.3404483,0.00010272,2]
[351672537,1738705843262,-500.0,0.00010272,2]
[351672538,1738705843272,-41.44042799,0.00010272,2]
[351672539,1738705843291,-458.55957201,0.00010272,2]
[351672540,1738705843300,-500.0,0.00010272,2]
[351672542,1738705843310,-41.83542799,0.00010272,2]
[351672544,1738705843321,-458.16457201,0.00010272,2]
[351672546,1738705843331,-25.58542799,0.00010272,2]
[351672551,1738705843722,-232.84457201,0.00010272,2]
[351672552,1738705843733,-500.0,0.00010272,2]
[351672553,1738705843743,-500.0,0.00010272,2]
[351672555,1738705843753,-248.75,0.00010272,2]
[351672558,1738705843763,-681.31,0.00010272,2]
[351672560,1738705843772,-500.0,0.00010272,2]
[351672561,1738705843782,-451.18294033,0.00010272,2]
[351672563,1738705843913,-18.37705967,0.00010272,2]
[351672564,1738705843923,-1000.0,0.00010272,2]
[351672565,1738705843933,-500.0,0.00010272,2]
[351672566,1738705843943,-500.0,0.00010272,2]
[351672567,1738705843953,-500.0,0.00010272,2]
[351672568,1738705843962,-181.03379816,0.00010272,2]
[351672569,1738705843974,-318.96620184,0.00010272,2]
[351672570,1738705843987,-395.92,0.00010272,2]
[351672571,1738705843997,-500.0,0.00010272,2]
[351672572,1738705844007,-286.25,0.00010272,2]
[351672573,1738705844017,-500.0,0.00010272,2]
[351672574,1738705844026,-500.0,0.00010272,2]
[351672575,1738705844036,-389.11392449,0.00010272,2]
[351672576,1738705844047,-110.88607551,0.00010272,2]
[351672577,1738705844057,-500.0,0.00010272,2]
[351672578,1738705844066,-500.0,0.00010272,2]
[351672579,1738705844076,-500.0,0.00010273,2]
[351672580,1738705844086,-444.66,0.00010273,2]
[351672581,1738705844095,-500.0,0.00010273,2]
[351672582,1738705844105,-500.0,0.00010273,2]
[351672583,1738705844114,-221.35519261,0.00010273,2]
[351672584,1738705844222,-101.41480739,0.00010273,2]
[351672585,1738705844235,-453.98,0.00010273,2]
[351672586,1738705844244,-500.0,0.00010273,2]
[351672587,1738705844254,-640.16,0.00010273,2]
[351672588,1738705844263,-500.0,0.00010273,2]
[351672589,1738705844273,-500.0,0.00010273,2]
[351672590,1738705844282,-500.0,0.00010273,2]
[351672591,1738705844291,-323.87,0.00010273,2]
[351672592,1738705844301,-500.0,0.00010273,2]
[351672593,1738705844310,-406.18,0.00010273,2]
[351672594,1738705844320,-189.24,0.00010273,2]
[351672595,1738705844330,-308.96471326,0.00010273,2]
[351672596,1738705844341,-191.03528674,0.00010273,2]
[351672597,1738705844351,-500.0,0.00010273,2]
[351672598,1738705844360,-138.62005381,0.00010273,2]
[351672599,1738705844372,-418.77994619,0.00010273,2]
[351672600,1738705844381,-258.21890246,0.00010273,2]
[351672601,1738705844393,-241.78109754,0.00010273,2]
[351672602,1738705844402,-281.86890246,0.00010273,2]
[351672603,1738705844413,-218.13109754,0.00010273,2]
[351672604,1738705844422,-500.0,0.00010273,2]
[351672605,1738705844431,-620.5,0.00010273,2]
[351672606,1738705844440,-87.88133645,0.00010273,2]
[351672607,1738705844452,-342.17866355,0.00010273,2]
[351672608,1738705844462,-221.44,0.00010273,2]
[351672609,1738705844471,-500.0,0.00010273,2]
[351672610,1738705844481,-226.38133645,0.00010273,2]
[351672611,1738705844493,-273.61866355,0.00010273,2]
[351672612,1738705844503,-408.54,0.00010273,2]
[351672613,1738705844512,-328.54133645,0.00010273,2]
[351672614,1738705844524,-171.45866355,0.00010273,2]
[351672615,1738705844534,-500.0,0.00010273,2]
[351672616,1738705844546,-340.39133645,0.00010273,2]
[351672617,1738705844560,-132.56866355,0.00010273,2]
[351672618,1738705844569,-500.0,0.00010273,2]
[351672619,1738705844579,-425.6,0.00010273,2]
[351672620,1738705844589,-211.82892645,0.00010273,2]
[351672621,1738705844600,-261.37107355,0.00010273,2]
[351672622,1738705844611,-500.0,0.00010273,2]
[351672623,1738705844620,-274.75,0.00010273,2]
[351672624,1738705844631,-500.0,0.00010273,2]
[351672625,1738705844641,-425.82,0.00010273,2]
[351672626,1738705844651,-426.65893165,0.00010273,2]
[351672627,1738705844670,-73.34106835,0.00010273,2]
[351672628,1738705844679,-325.6,0.00010273,2]
[351672629,1738705844689,-500.0,0.00010273,2]
[351672630,1738705844699,-120.52310165,0.00010273,2]
[351672631,1738705844711,-379.47689835,0.00010273,2]
[351672632,1738705844721,-228.46,0.00010273,2]
[351672633,1738705844732,-500.0,0.00010273,2]
[351672634,1738705844742,-178.14,0.00010273,2]
[351672635,1738705844751,-258.14009885,0.00010273,2]
[351672636,1738705844762,-241.85990115,0.00010273,2]
[351672637,1738705844772,-57.51959901,0.00010273,2]
[351672638,1738705844783,-442.48040099,0.00010273,2]
[351672639,1738705844793,-500.0,0.00010273,2]
[351672640,1738705844802,-500.0,0.00010273,2]
[351672641,1738705844812,-500.0,0.00010273,2]
[351672642,1738705844821,-500.0,0.00010273,2]
[351672643,1738705844831,-535.52,0.00010273,2]
[351672644,1738705844841,-561.16,0.00010273,2]
[351672645,1738705844851,-304.62,0.00010273,2]
[351672646,1738705844861,-500.0,0.00010273,2]
[351672647,1738705844870,-403.55,0.00010273,2]
[351672648,1738705844879,-500.0,0.00010273,2]
[351672649,1738705844888,-500.0,0.00010273,2]
[351672650,1738705844898,-500.0,0.00010273,2]
[351672651,1738705844907,-500.0,0.00010273,2]
[351672652,1738705844917,-500.0,0.00010273,2]
[351672653,1738705844927,-225.68,0.00010273,2]
[351672654,1738705844936,-500.0,0.00010273,2]
[351672655,1738705844946,-500.0,0.00010273,2]
[351672656,1738705844956,-500.0,0.00010273,2]
[351672657,1738705844965,-500.0,0.00010273,2]
[351672658,1738705844975,-500.0,0.00010273,2]
[351672659,1738705844987,-500.0,0.00010273,2]
[351672660,1738705844997,-500.0,0.00010273,2]
[351672661,1738705845007,-578.04,0.00010273,2]
[351672662,1738705845016,-500.0,0.00010273,2]
[351672663,1738705845026,-500.0,0.00010273,2]
[351672664,1738705845036,-217.87,0.00010273,2]
[351672665,1738705845046,-500.0,0.00010273,2]
[351672666,1738705845056,-500.0,0.00010273,2]
[351672667,1738705845066,-500.0,0.00010273,2]
[351672668,1738705845076,-500.0,0.00010273,2]
[351672669,1738705845086,-500.0,0.00010273,2]
[351672670,1738705845096,-177.66,0.00010273,2]
[351672671,1738705845106,-500.0,0.00010273,2]
[351672672,1738705845120,-500.0,0.00010273,2]
[351672673,1738705845129,-595.92,0.00010273,2]
[351672674,1738705845139,-500.0,0.00010273,2]
[351672675,1738705845149,-500.0,0.00010273,2]
[351672676,1738705845159,-326.48,0.00010273,2]
[351672677,1738705845168,-500.0,0.00010273,2]
[351672678,1738705845178,-500.0,0.00010273,2]
[351672679,1738705845188,-437.95658855,0.00010273,2]
[351672680,1738705845198,-500.0,0.00010273,2]
[351672681,1738705845207,-500.0,0.00010273,2]
[351672682,1738705845217,-500.0,0.00010273,2]
[351672683,1738705845227,-500.0,0.00010273,2]
[351672684,1738705845243,-500.0,0.00010273,2]
[351672685,1738705845253,-500.0,0.00010273,2]
[351672686,1738705845263,-500.0,0.00010273,2]
[351672687,1738705845274,-500.0,0.00010273,2]
[351672688,1738705845284,-500.0,0.00010273,2]
[351672689,1738705845294,-508.92,0.00010273,2]
[351672690,1738705845304,-500.0,0.00010273,2]
[351672691,1738705845314,-225.72,0.00010273,2]
[351672692,1738705845324,-500.0,0.00010273,2]
[351672693,1738705845334,-500.0,0.00010273,2]
[351672694,1738705845344,-512.35,0.00010273,2]
[351672695,1738705845354,-494.6,0.00010273,2]
[351672696,1738705845364,-500.0,0.00010273,2]
[351672697,1738705845374,-500.0,0.00010273,2]
[351672698,1738705845384,-413.54251747,0.00010273,2]
[351672699,1738705845395,-500.0,0.00010273,2]
[351672700,1738705845405,-500.0,0.00010273,2]
[351672701,1738705845415,-500.0,0.00010273,2]
[351672702,1738705845425,-226.39,0.00010273,2]
[351672703,1738705845435,-500.0,0.00010273,2]
[351672704,1738705845444,-300.89089682,0.00010325,2]
[351672705,1738705845454,-150.0,0.00010356,2]
[351672706,1738705845464,-250.62,0.00010356,2]
[351672707,1738705845474,-877.9,0.00010356,2]
[351672708,1738705845489,-150.0,0.00010356,2]
[351672709,1738705845499,-150.0,0.00010356,2]
[351672710,1738705845509,-4000.0,0.00010407,2]
[351672711,1738705845519,-159163.17562264,0.00010407,2]
[351672712,1738705845530,-500.0,0.00010408,2]
[351672713,1738705845539,-199.4,0.00010408,2]
[351672714,1738705845553,-418.7,0.00010408,2]
[351672715,1738705845563,-314.74281652,0.00010408,2]
[351672716,1738705845574,-500.0,0.00010408,2]
[351672717,1738705845583,-500.0,0.00010408,2]
[351672718,1738705845594,-500.0,0.00010408,2]
[351672719,1738705845603,-500.0,0.00010408,2]
[351672720,1738705845614,-500.0,0.00010408,2]
[351672721,1738705845624,-500.0,0.00010408,2]
[351672722,1738705845633,-354.76,0.00010408,2]
[351672723,1738705845643,-727.623884,0.00010408,2]
[351672724,1738705845653,-500.0,0.00010408,2]
[351672725,1738705845662,-500.0,0.00010408,2]
[351672726,1738705845671,-500.0,0.00010408,2]
[351672727,1738705845681,-500.0,0.00010408,2]
[351672728,1738705845691,-500.0,0.00010408,2]
[351672729,1738705845701,-500.0,0.00010408,2]
[351672730,1738705845711,-500.0,0.00010408,2]
[351672731,1738705845720,-500.0,0.00010408,2]
[351672732,1738705845732,-500.0,0.00010408,2]
[351672733,1738705845742,-593.33,0.00010408,2]
[351672734,1738705845752,-517.26,0.00010408,2]
[351672735,1738705845762,-1812.77,0.00010408,2]
[351672736,1738705845772,-500.0,0.00010408,2]
[351672737,1738705845781,-500.0,0.00010408,2]
[351672738,1738705845791,-186.19,0.00010408,2]
[351672739,1738705845801,-500.0,0.00010408,2]
[351672740,1738705845811,-1149.49,0.00010408,2]
[351672741,1738705845820,-538.77,0.00010408,2]
[351672742,1738705845830,-642.16,0.00010408,2]
[351672743,1738705845840,-373.3,0.00010408,2]
[351672744,1738705845850,-500.0,0.00010408,2]
[351672745,1738705845859,-575.39,0.00010408,2]
[351672746,1738705845869,-500.0,0.00010408,2]
[351672747,1738705845879,-500.0,0.00010408,2]
[351672748,1738705845889,-500.0,0.00010408,2]
[351672749,1738705845899,-267.13,0.00010408,2]
[351672750,1738705845908,-500.0,0.00010408,2]
[351672751,1738705845918,-500.0,0.00010408,2]
[351672752,1738705845928,-500.0,0.00010408,2]
[351672754,1738705845938,-500.0,0.00010408,2]
[351672755,1738705845947,-500.0,0.00010408,2]
[351672757,1738705845957,-500.0,0.00010408,2]
[351672759,1738705845966,-500.0,0.00010408,2]
[351672761,1738705845976,-323.63,0.00010408,2]
[351672763,1738705845987,-500.0,0.00010408,2]
[351672765,1738705845996,-534.21,0.00010408,2]
[351672767,1738705846006,-500.0,0.00010408,2]
[351672769,1738705846015,-500.0,0.00010408,2]
[351672770,1738705846026,-500.0,0.00010408,2]
[351672771,1738705846036,-500.0,0.00010408,2]
[351672772,1738705846047,-747.02,0.00010408,2]
[351672773,1738705846057,-500.0,0.00010408,2]
[351672774,1738705846066,-500.0,0.00010408,2]
[351672775,1738705846075,-500.0,0.00010408,2]
[351672776,1738705846086,-500.0,0.00010408,2]
[351672778,1738705846095,-576.13,0.00010408,2]
[351672779,1738705846105,-500.0,0.00010408,2]
[351672781,1738705846115,-345.09,0.00010408,2]
[351672783,1738705846125,-500.0,0.00010408,2]
[351672785,1738705846135,-766.33,0.00010408,2]
[351672786,1738705846145,-384.07,0.00010408,2]
[351672787,1738705846155,-379.51,0.00010408,2]
[351672788,1738705846164,-500.0,0.00010408,2]
[351672789,1738705846174,-579.92,0.00010408,2]
[351672790,1738705846183,-843.92,0.00010408,2]
[351672791,1738705846193,-500.0,0.00010408,2]
[351672793,1738705846203,-500.0,0.00010408,2]
[351672794,1738705846212,-500.0,0.00010408,2]
[351672795,1738705846222,-581.17,0.00010408,2]
[351672796,1738705846233,-500.0,0.00010408,2]
[351672797,1738705846243,-500.0,0.00010408,2]
[351672798,1738705846252,-500.0,0.00010409,2]
[351672799,1738705846262,-500.0,0.00010409,2]
[351672800,1738705846272,-500.0,0.00010409,2]
[351672801,1738705846282,-500.0,0.00010409,2]
[351672802,1738705846291,-442.78186367,0.00010409,2]
[351672803,1738705846302,-500.0,0.00010409,2]
[351672804,1738705846312,-500.0,0.00010409,2]
[351672805,1738705846322,-500.0,0.00010409,2]
[351672806,1738705846332,-500.0,0.00010409,2]
[351672807,1738705846342,-500.0,0.00010409,2]
[351672808,1738705846351,-500.0,0.00010409,2]
[351672809,1738705846361,-500.0,0.00010409,2]
[351672810,1738705846370,-500.0,0.00010409,2]
[351672811,1738705846380,-500.0,0.00010409,2]
[351672812,1738705846389,-195.51,0.00010409,2]
[351672813,1738705846399,-326.8,0.00010409,2]
[351672814,1738705846409,-381.25,0.00010409,2]
[351672815,1738705846418,-500.0,0.00010409,2]
[351672816,1738705846428,-533.24,0.00010409,2]
[351672817,1738705846438,-500.0,0.00010409,2]
[351672818,1738705846452,-612.27,0.00010409,2]
[351672819,1738705846462,-500.0,0.00010409,2]
[351672820,1738705846472,-500.0,0.00010409,2]
[351672821,1738705846482,-500.0,0.00010409,2]
[351672822,1738705846492,-500.0,0.00010409,2]
[351672823,1738705846502,-500.0,0.00010409,2]
[351672824,1738705846511,-500.0,0.00010409,2]
[351672825,1738705846521,-642.86,0.00010409,2]
[351672826,1738705846533,-150.8,0.00010409,2]
[351672827,1738705846544,-500.0,0.00010409,2]
[351672829,1738705846555,-500.0,0.00010409,2]
[351672830,1738705846565,-234.47,0.00010409,2]
[351672832,1738705846575,-284.89,0.00010409,2]
[351672834,1738705846584,-500.0,0.00010409,2]
[351672835,1738705846594,-500.0,0.00010409,2]
[351672836,1738705846604,-500.0,0.00010409,2]
[351672837,1738705846614,-500.0,0.00010409,2]
[351672838,1738705846625,-500.0,0.00010409,2]
[351672839,1738705846635,-500.0,0.00010409,2]
[351672842,1738705846645,-643.83,0.00010409,2]
[351672845,1738705846655,-500.0,0.00010409,2]
[351672848,1738705846665,-500.0,0.00010409,2]
[351672850,1738705846675,-500.0,0.00010409,2]
[351672851,1738705846685,-500.0,0.00010409,2]
[351672852,1738705846694,-500.0,0.00010409,2]
[351672853,1738705846704,-1574.6,0.00010409,2]
[351672854,1738705846713,-217.74,0.00010409,2]
[351672855,1738705846723,-500.0,0.00010409,2]
[351672856,1738705846736,-500.0,0.00010409,2]
[351672857,1738705846746,-500.0,0.00010409,2]
[351672858,1738705846756,-500.0,0.00010409,2]
[351672859,1738705846767,-500.0,0.00010409,2]
[351672860,1738705846777,-980.4,0.00010409,2]
[351672861,1738705846787,-500.0,0.00010409,2]
[351672862,1738705846797,-500.0,0.00010409,2]
[351672863,1738705846807,-500.0,0.00010409,2]
[351672864,1738705846817,-500.0,0.00010409,2]
[351672865,1738705846828,-500.0,0.00010409,2]
[351672866,1738705846838,-500.0,0.00010409,2]
[351672867,1738705846848,-500.0,0.00010409,2]
[351672868,1738705846858,-500.0,0.00010409,2]
[351672869,1738705846868,-500.0,0.00010409,2]
[351672870,1738705846877,-500.0,0.00010409,2]
[351672871,1738705846887,-500.0,0.00010409,2]
[351672872,1738705846896,-235.16,0.00010409,2]
[351672873,1738705846906,-500.0,0.00010409,2]
[351672874,1738705846916,-500.0,0.00010409,2]
[351672875,1738705846926,-784.09,0.00010409,2]
[351672876,1738705846936,-2180.15,0.00010409,2]
[351672877,1738705846946,-489.64,0.00010409,2]
[351672878,1738705846956,-483.74,0.00010409,2]
[351672879,1738705846965,-500.0,0.00010409,2]
[351672880,1738705846975,-500.0,0.00010409,2]
[351672881,1738705846988,-300.24,0.00010409,2]
[351672882,1738705846998,-500.0,0.00010409,2]
[351672883,1738705847008,-500.0,0.00010409,2]
[351672884,1738705847019,-500.0,0.00010409,2]
[351672885,1738705847030,-500.0,0.00010409,2]
[351672886,1738705847040,-500.0,0.00010409,2]
[351672887,1738705847051,-500.0,0.00010409,2]
[351672888,1738705847061,-500.0,0.00010409,2]
[351672889,1738705847071,-500.0,0.00010409,2]
[351672890,1738705847082,-175.34,0.00010409,2]
[351672891,1738705847092,-500.0,0.00010409,2]
[351672892,1738705847103,-500.0,0.00010409,2]